bitfinex/quotes_BTCUSD_20241215
["timestamp","ask_amount","ask_price","bid_price","bid_amount"]
[1734256004687,0.0002502,102180.0,102170.0,1.12231968]
[1734256005426,0.0002502,102180.0,102170.0,1.2965101]
[1734256005628,0.0002502,102180.0,102170.0,1.51424813]
[1734256007637,0.0002502,102180.0,102170.0,1.42852743]
[1734256008053,0.0002502,102180.0,102170.0,1.32931843]
[1734256008696,0.0002502,102180.0,102170.0,1.1983731]
[1734256010705,0.0002502,102180.0,102170.0,1.06742777]
[1734256016059,0.0002502,102180.0,102170.0,1.13256808]
[1734256023455,0.0002502,102180.0,102170.0,6.18256808]
[1734256023675,0.0002502,102180.0,102170.0,4.88972708]
[1734256026225,0.0002502,102180.0,102170.0,5.27539041]
[1734256026442,0.0002502,102180.0,102170.0,5.2102501]
[1734256026657,0.0630528,102190.0,102180.0,0.15]
[1734256026885,0.0630528,102190.0,102180.0,6.04428016]
[1734256027067,0.0630528,102190.0,102180.0,6.49543916]
[1734256027315,0.0630528,102190.0,102180.0,6.50279833]
[1734256027516,0.0630528,102190.0,102180.0,6.69853133]
[1734256028464,0.0630528,102190.0,102180.0,6.69918932]
[1734256028671,0.0630528,102190.0,102180.0,6.24818932]
[1734256028872,0.0630528,102190.0,102180.0,2.01118932]
[1734256029066,0.0630528,102190.0,102180.0,1.13242102]
[1734256031640,0.0630528,102190.0,102180.0,1.35081456]
[1734256033559,0.0630528,102190.0,102180.0,1.41595487]
[1734256034321,0.0630528,102190.0,102180.0,1.38558131]
[1734256034467,0.0630528,102190.0,102180.0,1.12341178]
[1734256036011,0.0630528,102190.0,102180.0,1.12311237]
[1734256036839,0.0630528,102190.0,102180.0,1.13310932]
[1734256037274,0.0630528,102190.0,102180.0,1.12311237]
[1734256037843,0.0630528,102190.0,102180.0,1.05797206]
[1734256038577,0.1392528,102190.0,102180.0,1.16745977]
[1734256038783,0.1392528,102190.0,102180.0,1.23260008]
[1734256042321,0.1392528,102190.0,102180.0,1.23244317]
[1734256042469,0.1392528,102190.0,102180.0,1.06824883]
[1734256042674,0.1392528,102190.0,102180.0,1.35167064]
[1734256043056,0.1392528,102190.0,102180.0,1.13340633]
[1734256045287,0.1392528,102190.0,102180.0,1.35167064]
[1734256046972,0.1392528,102190.0,102180.0,1.35178259]
[1734256048636,0.1392528,102190.0,102180.0,1.28664228]
[1734256050764,0.1392528,102190.0,102180.0,1.06834777]
[1734256051012,0.1392528,102190.0,102180.0,0.89371216]
[1734256053432,0.1392528,102190.0,102180.0,0.89388436]
[1734256053868,0.3349658,102190.0,102180.0,0.69815136]
[1734256056852,0.34496964,102190.0,102180.0,0.69815136]
[1734256057910,0.34496964,102190.0,102180.0,0.37582587]
[1734256058117,0.34496964,102190.0,102180.0,0.69826981]
[1734256062155,0.3349658,102190.0,102180.0,0.69826981]
[1734256064870,0.3349658,102190.0,102180.0,0.69859714]
[1734256067025,0.1392528,102190.0,102180.0,0.69859714]
[1734256067435,0.1392528,102190.0,102180.0,0.89433014]
[1734256067641,0.3349658,102190.0,102180.0,0.74433014]
[1734256068813,0.3579658,102190.0,102180.0,0.74433014]
[1734256069225,0.3579658,102190.0,102180.0,0.54864394]
[1734256069657,0.1622528,102190.0,102180.0,0.69864394]
[1734256071490,0.17192074,102190.0,102180.0,0.69864394]
[1734256078308,0.17192074,102190.0,102180.0,0.55081949]
[1734256078713,0.17192074,102190.0,102180.0,0.87343866]
[1734256083395,0.17192074,102190.0,102180.0,0.72343866]
[1734256083396,0.36763374,102190.0,102180.0,0.72343866]
[1734256088636,0.36763374,102190.0,102180.0,0.94193206]
[1734256095418,0.36763374,102190.0,102180.0,0.72343866]
[1734256098591,0.36763374,102190.0,102180.0,0.72485036]
[1734256099734,0.36713374,102190.0,102180.0,0.72485036]
[1734256101376,0.36713374,102190.0,102180.0,0.09510107]
[1734256101377,0.54352333,102190.0,102180.0,0.09510107]
[1734256101582,0.6315501,102190.0,102180.0,0.00753137]
[1734256101787,0.76359026,102190.0,102180.0,0.00753137]
[1734256102197,0.92744856,102190.0,102180.0,0.00753137]
[1734256102419,0.75139501,102190.0,102180.0,0.00753137]
[1734256102626,0.92744856,102190.0,102180.0,0.00753137]
[1734256102839,1.1972621,102190.0,102180.0,0.00753137]
[1734256103222,0.97728566,102190.0,102180.0,0.00753137]
[1734256103472,1.1972621,102190.0,102180.0,0.00753137]
[1734256104351,0.97728566,102190.0,102180.0,0.00753137]
[1734256105003,1.06229909,102190.0,102180.0,0.00753137]
[1734256105866,1.28227553,102190.0,102180.0,0.01328727]
[1734256106503,1.28668467,102190.0,102180.0,0.01328727]
[1734256107145,1.28594877,102190.0,102180.0,0.01328727]
[1734256107349,1.06623515,102190.0,102180.0,0.01328727]
[1734256107552,1.23153963,102190.0,102180.0,0.01328727]
[1734256107757,1.16182602,102190.0,102180.0,0.01328727]
[1734256107973,1.24971147,102190.0,102180.0,0.01328727]
[1734256108442,0.98605513,102190.0,102180.0,0.01328727]
[1734256108858,0.10839525,102180.0,102170.0,0.0003363]
[1734256109073,1.40508837,102180.0,102170.0,0.0003363]
[1734256109290,1.40505177,102180.0,102170.0,0.0003363]
[1734256110421,1.18533815,102180.0,102170.0,0.0003363]
[1734256111277,1.18504269,102180.0,102170.0,0.0003363]
[1734256111491,1.00951614,102180.0,102170.0,0.0003363]
[1734256111693,1.10857017,102180.0,102170.0,0.0003363]
[1734256113239,0.91314924,102180.0,102170.0,0.0003363]
[1734256113446,0.91178495,102180.0,102170.0,0.0003363]
[1734256114492,0.97692526,102180.0,102170.0,0.0003363]
[1734256115702,0.97681283,102180.0,102170.0,0.0003363]
[1734256116322,0.49204687,102160.0,102150.0,0.0001724]
[1734256116599,0.5911009,102160.0,102150.0,0.00564286]
[1734256118474,0.6411009,102160.0,102150.0,0.00564286]
[1734256118906,0.62890565,102160.0,102150.0,0.00564286]
[1734256121500,0.72795968,102160.0,102150.0,0.00564286]
[1734256121742,0.62890565,102160.0,102150.0,0.00564286]
[1734256122323,0.5886873,102160.0,102150.0,0.00564286]
[1734256123497,0.65382761,102160.0,102150.0,0.00564286]
[1734256123696,0.5886873,102160.0,102150.0,0.00564286]
[1734256123906,0.68774133,102160.0,102150.0,0.00564286]
[1734256124105,0.90288164,102160.0,102150.0,0.00564286]
[1734256125514,0.90288164,102160.0,102150.0,8.6e-07]
[1734256125734,0.218848,102120.0,102110.0,0.0796722]
[1734256126136,0.28398831,102120.0,102110.0,0.0796722]
[1734256126541,0.218848,102120.0,102110.0,0.0796722]
[1734256127033,0.28398831,102120.0,102110.0,0.08021942]
[1734256127434,0.39523759,102120.0,102110.0,0.08021942]
[1734256128455,0.38304234,102120.0,102110.0,0.08021942]
[1734256128657,0.39523759,102120.0,102110.0,0.08021942]
[1734256129645,0.33009728,102120.0,102110.0,0.08021942]
[1734256131133,0.33009728,102120.0,102110.0,0.00071942]
[1734256131310,0.39523759,102120.0,102110.0,0.00071942]
[1734256131911,0.40484383,102120.0,102110.0,0.00071942]
[1734256132546,0.33970352,102120.0,102110.0,0.00071942]
[1734256132909,0.33970352,102120.0,102110.0,0.00626571]
[1734256133930,0.32750827,102120.0,102110.0,0.00626571]
[1734256134136,0.33970352,102120.0,102110.0,0.00626571]
[1734256136163,0.24064949,102120.0,102110.0,0.08686571]
[1734256136368,0.04480149,102120.0,102110.0,0.11897671]
[1734256136545,0.03260624,102120.0,102110.0,0.11897671]
[1734256137400,0.04480149,102120.0,102110.0,0.11897671]
[1734256138053,0.03260624,102120.0,102110.0,0.31484371]
[1734256138257,0.023,102130.0,102120.0,0.0806]
[1734256138503,0.60927802,102140.0,102120.0,0.0806]
[1734256138710,0.70833205,102140.0,102120.0,0.08614631]
[1734256139631,0.023,102130.0,102120.0,0.08614631]
[1734256140684,0.023,102130.0,102120.0,0.34713462]
[1734256141475,0.023,102130.0,102120.0,0.28199431]
[1734256141695,0.023,102130.0,102120.0,0.34713462]
[1734256141816,0.023,102130.0,102120.0,0.28199431]
[1734256142020,0.023,102130.0,102120.0,0.34713462]
[1734256142248,0.023,102130.0,102120.0,0.34646955]
[1734256146014,0.00962677,102140.0,102120.0,0.59552358]
[1734256146188,8.62e-05,102150.0,102130.0,0.68958631]
[1734256146398,8.62e-05,102150.0,102130.0,0.69417339]
[1734256146829,0.00963747,102150.0,102130.0,0.69416139]
[1734256147045,8.62e-05,102150.0,102130.0,0.69416139]
[1734256147440,0.0230862,102150.0,102130.0,0.69416139]
[1734256147858,0.0230862,102150.0,102130.0,0.88998839]
[1734256148557,0.0230862,102150.0,102130.0,0.69416139]
[1734256149315,0.0230862,102150.0,102130.0,0.88997939]
[1734256149954,0.03267753,102150.0,102140.0,0.0828]
[1734256150158,0.22846753,102150.0,102140.0,0.0828]
[1734256150476,0.03267753,102150.0,102140.0,0.08830434]
[1734256155871,8.62e-05,102150.0,102140.0,0.64600768]
[1734256156085,8.62e-05,102150.0,102140.0,0.64454128]
[1734256157281,8.62e-05,102150.0,102140.0,0.70968159]
[1734256158838,8.62e-05,102150.0,102140.0,0.64454128]
[1734256159467,8.62e-05,102150.0,102140.0,0.74748634]
[1734256160500,8.62e-05,102150.0,102140.0,0.68234603]
[1734256160711,8.62e-05,102150.0,102140.0,0.15550434]
[1734256160916,8.62e-05,102150.0,102140.0,0.1586781]
[1734256161092,8.62e-05,102150.0,102140.0,0.3544871]
[1734256161745,8.62e-05,102150.0,102140.0,0.41962741]
[1734256168491,8.62e-05,102150.0,102140.0,0.41979981]
[1734256168920,8.62e-05,102150.0,102140.0,0.56398476]
[1734256169486,8.62e-05,102150.0,102140.0,0.49884445]
[1734256170406,8.62e-05,102150.0,102140.0,0.56398476]
[1734256170636,8.62e-05,102150.0,102140.0,0.60178951]
[1734256170869,8.62e-05,102150.0,102140.0,0.73295454]
[1734256172988,8.62e-05,102150.0,102140.0,0.70084354]
[1734256173195,8.62e-05,102150.0,102140.0,0.73084354]
[1734256173609,8.62e-05,102150.0,102140.0,0.85024031]
[1734256174019,8.62e-05,102150.0,102140.0,0.98116896]
[1734256174227,8.62e-05,102150.0,102140.0,1.507873]
[1734256174681,8.62e-05,102150.0,102140.0,1.475762]
[1734256177535,8.62e-05,102150.0,102140.0,1.34548138]
[1734256177884,8.62e-05,102150.0,102140.0,0.44574445]
[1734256178063,8.62e-05,102150.0,102140.0,0.38497297]
[1734256178240,8.62e-05,102150.0,102140.0,0.15916397]
[1734256178455,0.1958762,102150.0,102140.0,0.00916397]
[1734256179040,8.62e-05,102150.0,102140.0,0.27011328]
[1734256179813,8.62e-05,102150.0,102140.0,0.42011328]
[1734256180341,8.62e-05,102150.0,102140.0,0.48525359]
[1734256181115,8.62e-05,102150.0,102140.0,0.42011328]
[1734256181321,8.62e-05,102150.0,102140.0,0.48525359]
[1734256181927,8.62e-05,102150.0,102140.0,0.42011328]
[1734256183283,8.62e-05,102150.0,102140.0,0.50739905]
[1734256183942,8.62e-05,102150.0,102140.0,0.57253936]
[1734256184322,8.62e-05,102150.0,102140.0,0.70346801]
[1734256184677,8.62e-05,102150.0,102140.0,0.57253936]
[1734256184884,8.62e-05,102150.0,102140.0,0.70346801]
[1734256185295,8.62e-05,102150.0,102140.0,1.0260663]
[1734256185653,8.62e-05,102150.0,102140.0,0.96093208]
[1734256185770,8.62e-05,102150.0,102140.0,0.63859936]
[1734256186190,8.62e-05,102150.0,102140.0,0.50750771]
[1734256186608,8.62e-05,102150.0,102140.0,0.42011328]
[1734256189241,8.62e-05,102150.0,102140.0,0.50750771]
[1734256193011,0.5359402,102160.0,102140.0,0.70331671]
[1734256193209,0.5359402,102160.0,102140.0,0.83440836]
[1734256195167,0.5359402,102160.0,102140.0,1.15734482]
[1734256198452,0.3401582,102160.0,102140.0,1.35314382]
[1734256198663,0.3401582,102160.0,102140.0,1.33212369]
[1734256199179,0.3401582,102160.0,102140.0,1.33259227]
[1734256199307,0.24056278,102170.0,102160.0,0.0098418]
[1734256199513,0.33961681,102170.0,102160.0,0.0098418]
[1734256199718,0.33961681,102170.0,102160.0,0.01523745]
[1734256200546,0.33978076,102170.0,102160.0,0.01523745]
[1734256201825,0.31678076,102170.0,102160.0,0.01523745]
[1734256202274,0.43718076,102170.0,102160.0,0.01523745]
[1734256202472,0.43726696,102170.0,102160.0,0.01523745]
[1734256208383,0.43726696,102170.0,102160.0,0.01883397]
[1734256214264,0.43726696,102170.0,102160.0,0.01900637]
[1734256220159,0.52523268,102170.0,102160.0,0.01900637]
[1734256223215,0.65718126,102170.0,102160.0,0.01900637]
[1734256223886,0.65735864,102170.0,102160.0,0.01900637]
[1734256228394,0.65738561,102170.0,102160.0,0.01900637]
[1734256232222,0.65738561,102170.0,102160.0,0.01568735]
[1734256237198,0.65741201,102170.0,102160.0,0.01712949]
[1734256241124,0.83352805,102170.0,102160.0,0.01712949]
[1734256241607,0.00025015,102170.0,102160.0,0.93509518]
[1734256241812,0.00025015,102170.0,102160.0,1.66809978]
[1734256242023,0.00025015,102170.0,102160.0,1.9020226]
[1734256242230,0.00025015,102170.0,102160.0,1.44890417]
[1734256242441,0.00025015,102170.0,102160.0,1.57425667]
[1734256242647,8.61e-05,102180.0,102170.0,0.28940475]
[1734256242860,8.61e-05,102180.0,102170.0,0.99580603]
[1734256243273,8.61e-05,102180.0,102170.0,1.19720828]
[1734256243426,8.61e-05,102180.0,102170.0,1.3720459]
[1734256244456,8.61e-05,102180.0,102170.0,1.50310908]
[1734256245519,8.61e-05,102180.0,102170.0,1.5904487]
[1734256247542,8.61e-05,102180.0,102170.0,1.37176193]
[1734256249461,8.61e-05,102180.0,102170.0,1.19692431]
[1734256251598,8.61e-05,102180.0,102170.0,0.87340414]
[1734256252410,8.61e-05,102180.0,102170.0,0.74234096]
[1734256254965,8.61e-05,102180.0,102170.0,0.67720065]
[1734256255171,8.61e-05,102180.0,102170.0,0.74234096]
[1734256257529,8.61e-05,102180.0,102170.0,0.65500134]
[1734256258968,8.61e-05,102180.0,102170.0,0.65517374]
[1734256262919,8.61e-05,102180.0,102170.0,0.85959272]
[1734256263131,8.61e-05,102180.0,102170.0,1.0394559]
[1734256263339,0.0153527,102190.0,102180.0,0.30328062]
[1734256263538,0.0153527,102190.0,102180.0,0.67616765]
[1734256263744,0.0153527,102190.0,102180.0,0.68176047]
[1734256263949,0.0153527,102190.0,102180.0,0.55147985]
[1734256264151,0.0153527,102190.0,102180.0,0.68176047]
[1734256264334,0.0153527,102190.0,102180.0,0.61662016]
[1734256266510,0.0153527,102190.0,102180.0,0.55147985]
[1734256266715,0.0153527,102190.0,102180.0,0.61662016]
[1734256267341,0.0153527,102190.0,102180.0,0.43946613]
[1734256268780,0.0153527,102190.0,102180.0,0.37432582]
[1734256269196,0.2110657,102190.0,102180.0,0.17859282]
[1734256269407,0.3326657,102190.0,102180.0,0.15559282]
[1734256269638,0.3326657,102190.0,102180.0,0.00559282]
[1734256272696,0.34221073,102190.0,102180.0,0.00559282]
[1734256278791,0.40735104,102190.0,102180.0,0.00559282]
[1734256278992,0.34221073,102190.0,102180.0,0.00559282]
[1734256280773,0.50640507,102190.0,102180.0,0.00559282]
[1734256281981,0.55640507,102190.0,102180.0,0.00559282]
[1734256282802,0.56860032,102190.0,102180.0,0.00559282]
[1734256283441,0.51860032,102190.0,102180.0,0.00559282]
[1734256283649,0.59405137,102190.0,102180.0,0.00559282]
[1734256284072,0.72552083,102190.0,102180.0,0.00559282]
[1734256284927,0.64405137,102190.0,102180.0,0.00559282]
[1734256285345,0.55640507,102190.0,102180.0,0.00559282]
[1734256285559,0.64405137,102190.0,102180.0,0.00559282]
[1734256286711,0.77552083,102190.0,102180.0,0.00559282]
[1734256287134,0.64405137,102190.0,102180.0,0.00559282]
[1734256287995,0.59405137,102190.0,102180.0,0.00559282]
[1734256288202,0.52891106,102190.0,102180.0,0.00559282]
[1734256288408,0.59405137,102190.0,102180.0,0.00559282]
[1734256288638,0.50640507,102190.0,102180.0,0.00559282]
[1734256289272,0.55640507,102190.0,102180.0,0.00559282]
[1734256290882,0.64405137,102190.0,102180.0,0.00559282]
[1734256291306,0.55640507,102190.0,102180.0,0.00559282]
[1734256291956,0.50640507,102190.0,102180.0,0.00559282]
[1734256295199,0.50640507,102190.0,102180.0,0.01308795]
[1734256295876,0.50614576,102190.0,102180.0,0.01308795]
[1734256296337,0.55614576,102190.0,102180.0,0.01308795]
[1734256297821,0.56834101,102190.0,102180.0,0.01308795]
[1734256298211,0.50614576,102190.0,102180.0,0.01308795]
[1734256302359,0.50913569,102190.0,102180.0,0.01308795]
[1734256304137,0.49100545,102190.0,102180.0,0.01308795]
[1734256304343,0.55614576,102190.0,102180.0,0.01308795]
[1734256304550,0.56834101,102190.0,102180.0,0.01308795]
[1734256304761,0.49100545,102190.0,102180.0,0.01308795]
[1734256304978,0.55614576,102190.0,102180.0,0.01308795]
[1734256308931,0.56834101,102190.0,102180.0,0.01308795]
[1734256309136,0.49264101,102190.0,102180.0,0.01308795]
[1734256314319,0.5804307,102190.0,102180.0,0.01308795]
[1734256317272,0.5304307,102190.0,102180.0,0.01308795]
[1734256317483,0.6071307,102190.0,102180.0,0.01308795]
[1734256317892,0.73881524,102190.0,102180.0,0.01308795]
[1734256321426,0.91439463,102190.0,102180.0,0.01308795]
[1734256322018,0.90219938,102190.0,102180.0,0.01308795]
[1734256322218,1.09902424,102190.0,102180.0,0.01308795]
[1734256322448,1.13907335,102190.0,102180.0,0.01308795]
[1734256322662,1.07393304,102190.0,102180.0,0.01308795]
[1734256322944,1.09902424,102190.0,102180.0,0.01308795]
[1734256323149,0.9673397,102190.0,102180.0,0.01308795]
[1734256323351,0.90219939,102190.0,102180.0,0.01308795]
[1734256323501,0.9673397,102190.0,102180.0,0.01308795]
[1734256326541,0.79176031,102190.0,102180.0,0.01308795]
[1734256326945,1.10350031,102190.0,102180.0,0.01308795]
[1734256327147,0.321633,102180.0,102170.0,0.00013241]
[1734256327349,0.77094656,102180.0,102170.0,0.00013241]
[1734256327510,1.03431565,102180.0,102170.0,0.00013241]
[1734256329162,0.77094656,102180.0,102170.0,0.00013241]
[1734256330333,1.04591612,102180.0,102170.0,0.00013241]
[1734256330761,0.87000059,102180.0,102170.0,0.00013241]
[1734256331402,1.04589065,102180.0,102170.0,0.00013241]
[1734256331844,0.94683662,102180.0,102170.0,0.00013241]
[1734256333138,1.16197693,102180.0,102170.0,0.00013241]
[1734256333360,1.04482687,102180.0,102170.0,0.00013241]
[1734256333565,1.06467454,102180.0,102170.0,0.00013241]
[1734256334201,1.16767454,102180.0,102170.0,0.00013241]
[1734256334414,0.06219525,102150.0,102140.0,0.0817724]
[1734256334618,0.42217959,102150.0,102140.0,0.0001724]
[1734256335221,0.42217959,102150.0,102140.0,0.01135582]
[1734256341618,0.43196027,102150.0,102140.0,0.01135582]
[1734256342425,0.45170574,102150.0,102140.0,0.01135582]
[1734256346658,0.40170574,102150.0,102140.0,0.01135582]
[1734256347714,0.40680484,102150.0,102140.0,0.01135582]
[1734256351503,0.48350484,102150.0,102140.0,0.01135582]
[1734256351919,0.54864515,102150.0,102140.0,0.01135582]
[1734256352126,0.48350484,102150.0,102140.0,0.01135582]
[1734256352351,0.4865074,102150.0,102140.0,0.01135582]
[1734256352996,0.48350484,102150.0,102140.0,0.01135582]
[1734256353240,0.63135887,102150.0,102140.0,0.01135582]
[1734256353920,0.53230484,102150.0,102140.0,0.01135582]
[1734256356004,0.46716453,102150.0,102140.0,0.01135582]
[1734256356206,0.45560484,102150.0,102140.0,0.01135582]
[1734256356407,0.45560484,102150.0,102140.0,0.00727892]
[1734256367359,0.45847544,102150.0,102140.0,0.00727892]
[1734256370272,0.54621358,102150.0,102140.0,0.00727892]
[1734256371974,0.45847544,102150.0,102140.0,0.00727892]
[1734256372189,0.54635058,102150.0,102140.0,0.00727892]
[1734256372394,0.67816329,102150.0,102140.0,0.00727892]
[1734256375106,0.67816329,102150.0,102140.0,0.00727892]
[1734256375315,0.85391358,102150.0,102140.0,0.00727892]
[1734256376746,0.85424306,102150.0,102140.0,0.00727892]
[1734256377157,0.95329709,102150.0,102140.0,0.00727892]
[1734256377364,0.85424306,102150.0,102140.0,0.00727892]
[1734256378456,1.07411396,102150.0,102140.0,0.00727892]
[1734256380276,0.9861656,102150.0,102140.0,0.00727892]
[1734256380872,1.07454391,102150.0,102140.0,0.00727892]
[1734256381280,0.98653421,102150.0,102140.0,0.00727892]
[1734256383414,0.93773421,102150.0,102140.0,0.08937892]
[1734256384246,0.93773421,102150.0,102140.0,0.00727892]
[1734256388917,0.93789834,102150.0,102140.0,0.00727892]
[1734256389554,0.87275803,102150.0,102140.0,0.00727892]
[1734256389781,0.93789834,102150.0,102140.0,0.00727892]
[1734256392339,0.80584262,102150.0,102140.0,0.00727892]
[1734256393862,0.78783171,102150.0,102140.0,0.08537892]
[1734256394073,0.9199342,102150.0,102140.0,0.08537892]
[1734256394286,1.00799871,102150.0,102140.0,0.08537892]
[1734256394493,0.78790583,102150.0,102140.0,0.08537892]
[1734256395569,0.85304614,102150.0,102140.0,0.08537892]
[1734256397550,0.78790583,102150.0,102140.0,0.08537892]
[1734256398405,0.77571058,102150.0,102140.0,0.08537892]
[1734256398869,0.78790583,102150.0,102140.0,0.08537892]
[1734256400567,0.54963628,102150.0,102140.0,0.08537892]
[1734256400773,0.41243469,102150.0,102140.0,0.08537892]
[1734256402451,0.32437018,102150.0,102140.0,0.08537892]
[1734256402906,0.32437018,102150.0,102140.0,0.13507892]
[1734256408781,0.32437018,102150.0,102140.0,0.00727892]
[1734256408782,0.60913256,102150.0,102140.0,0.00727892]
[1734256408986,0.91720982,102150.0,102140.0,0.00727892]
[1734256409194,1.13726501,102150.0,102140.0,0.00727892]
[1734256410774,1.18506501,102150.0,102140.0,0.00727892]
[1734256415958,1.18487342,102150.0,102140.0,0.00727892]
[1734256419606,1.19706867,102150.0,102140.0,0.00727892]
[1734256419818,1.14706867,102150.0,102140.0,0.00727892]
[1734256420248,1.05907397,102150.0,102140.0,0.00727892]
[1734256421518,1.12931127,102150.0,102140.0,0.00727892]
[1734256421941,0.99731921,102150.0,102140.0,0.00727892]
[1734256422562,0.9321789,102150.0,102140.0,0.00727892]
[1734256424246,0.99731921,102150.0,102140.0,0.00727892]
[1734256424450,0.99731921,102150.0,102120.0,0.09359658]
[1734256424451,0.31096831,102130.0,102120.0,0.09359658]
[1734256424655,0.41002234,102130.0,102120.0,0.09359658]
[1734256425282,0.41002234,102130.0,102120.0,0.0782724]
[1734256425704,0.41002234,102130.0,102120.0,0.07843635]
[1734256430961,0.42950638,102130.0,102120.0,0.07843635]
[1734256431847,0.37418534,102130.0,102120.0,0.07843635]
[1734256432054,0.43932565,102130.0,102120.0,0.08513075]
[1734256436772,0.37418534,102130.0,102120.0,0.08513075]
[1734256437167,0.32418534,102130.0,102120.0,0.08513075]
[1734256438113,0.37418534,102130.0,102120.0,0.08513075]
[1734256439700,0.32418534,102130.0,102120.0,0.08513075]
[1734256440237,0.43932565,102130.0,102120.0,0.00703075]
[1734256449032,0.5272141,102130.0,102120.0,0.00703075]
[1734256452514,0.6054141,102130.0,102120.0,0.00703075]
[1734256452733,0.5272141,102130.0,102120.0,0.00703075]
[1734256453378,0.65904677,102130.0,102120.0,0.00703075]
[1734256454796,0.65904677,102130.0,102120.0,0.29203075]
[1734256455192,0.59390646,102130.0,102120.0,0.29203075]
[1734256455806,0.59390646,102130.0,102120.0,0.37373075]
[1734256456871,0.59677887,102130.0,102120.0,0.37373075]
[1734256457119,0.59696828,102130.0,102120.0,0.37373075]
[1734256457258,0.46502196,102130.0,102120.0,0.37373075]
[1734256458001,0.46214955,102130.0,102120.0,0.37373075]
[1734256458972,0.46215536,102130.0,102120.0,0.37373075]
[1734256461311,0.5941104,102130.0,102120.0,0.37373075]
[1734256463427,0.59418767,102130.0,102120.0,0.37373075]
[1734256463627,0.54418767,102130.0,102120.0,0.37373075]
[1734256464037,0.41218627,102130.0,102120.0,0.37373075]
[1734256464355,0.54418767,102130.0,102120.0,0.37373075]
[1734256466178,0.54418767,102130.0,102120.0,0.37127319]
[1734256467967,0.54418767,102130.0,102120.0,0.37373424]
[1734256470386,0.72018954,102130.0,102120.0,0.37373424]
[1734256473505,0.54418767,102130.0,102120.0,0.37373424]
[1734256481096,0.54433055,102130.0,102120.0,0.37373424]
[1734256482013,0.41224342,102130.0,102120.0,0.37373424]
[1734256486207,0.3047013,102130.0,102120.0,0.37373424]
[1734256491692,0.1088733,102130.0,102120.0,0.52686942]
[1734256491926,0.1088733,102130.0,102120.0,0.72271742]
[1734256494848,0.1088733,102130.0,102120.0,0.72267097]
[1734256495282,0.00981927,102130.0,102120.0,1.28217625]
[1734256495492,0.00981927,102130.0,102120.0,1.46679928]
[1734256495699,0.01977195,102140.0,102130.0,0.30893275]
[1734256495923,0.11882598,102140.0,102130.0,0.46202148]
[1734256496127,0.11882598,102140.0,102130.0,0.46870075]
[1734256496982,0.11882598,102140.0,102130.0,0.44439701]
[1734256497624,0.11882598,102140.0,102130.0,0.35644859]
[1734256497974,0.09914023,102140.0,102130.0,0.35644859]
[1734256498615,0.10890114,102140.0,102130.0,0.35644859]
[1734256501390,0.10890114,102140.0,102130.0,0.36066231]
[1734256502364,0.30471014,102140.0,102130.0,0.11557681]
[1734256507484,0.30471014,102140.0,102130.0,0.18071712]
[1734256507696,0.30471014,102140.0,102130.0,0.37654512]
[1734256508499,0.10890114,102140.0,102130.0,0.37654512]
[1734256508699,0.10890114,102140.0,102130.0,0.37248401]
[1734256510469,0.30471014,102140.0,102130.0,0.17665601]
[1734256510824,0.30471014,102140.0,102130.0,0.1115157]
[1734256512776,0.30471014,102140.0,102130.0,0.1116881]
[1734256516832,0.10890114,102140.0,102130.0,0.3075161]
[1734256517084,0.00984711,102140.0,102130.0,0.37265641]
[1734256517556,0.00984711,102140.0,102130.0,0.65765641]
[1734256519291,0.00984711,102140.0,102130.0,0.80765641]
[1734256521312,8.62e-05,102140.0,102130.0,0.80765641]
[1734256521533,8.62e-05,102140.0,102130.0,0.85605641]
[1734256522431,8.62e-05,102140.0,102130.0,0.94379936]
[1734256522753,8.62e-05,102140.0,102130.0,0.97842239]
[1734256524137,8.62e-05,102140.0,102130.0,1.45175447]
[1734256524351,8.62e-05,102140.0,102130.0,1.62724037]
[1734256524571,8.62e-05,102140.0,102130.0,1.85412509]
[1734256524946,8.62e-05,102140.0,102130.0,1.72002971]
[1734256525302,8.62e-05,102140.0,102130.0,1.84208374]
[1734256526597,8.62e-05,102140.0,102130.0,1.92978636]
[1734256526801,8.62e-05,102140.0,102130.0,2.38285555]
[1734256527643,8.62e-05,102140.0,102130.0,2.43285555]
[1734256527850,8.62e-05,102160.0,102150.0,0.57171413]
[1734256528067,8.62e-05,102160.0,102150.0,0.60633716]
[1734256528278,8.62e-05,102160.0,102150.0,0.69826439]
[1734256528680,8.62e-05,102160.0,102150.0,0.66364136]
[1734256529261,8.62e-05,102160.0,102150.0,0.79503963]
[1734256529474,8.62e-05,102160.0,102150.0,0.66361226]
[1734256529675,8.62e-05,102160.0,102150.0,1.11839386]
[1734256530128,8.62e-05,102160.0,102150.0,1.29363035]
[1734256530549,8.62e-05,102160.0,102150.0,1.11839386]
[1734256530758,8.62e-05,102160.0,102150.0,0.79503963]
[1734256530933,8.62e-05,102160.0,102150.0,1.29355325]
[1734256531693,8.62e-05,102160.0,102150.0,1.45774759]
[1734256531906,8.62e-05,102160.0,102150.0,1.39260728]
[1734256532314,8.62e-05,102160.0,102150.0,1.6116529]
[1734256532557,8.62e-05,102160.0,102150.0,1.64627593]
[1734256533467,8.62e-05,102160.0,102150.0,1.42723031]
[1734256533675,8.62e-05,102160.0,102150.0,1.49237062]
[1734256534511,8.62e-05,102160.0,102150.0,1.42723031]
[1734256535564,8.62e-05,102160.0,102150.0,1.39260728]
[1734256536396,8.62e-05,102160.0,102150.0,1.21737079]
[1734256537214,8.62e-05,102160.0,102150.0,1.39260728]
[1734256537364,8.62e-05,102160.0,102150.0,1.21737079]
[1734256539981,8.62e-05,102160.0,102150.0,1.54463419]
[1734256546440,8.62e-05,102160.0,102150.0,1.82963419]
[1734256551541,8.62e-05,102160.0,102150.0,1.11207496]
[1734256551742,8.62e-05,102160.0,102150.0,1.82809474]
[1734256553566,8.62e-05,102160.0,102150.0,5.52009474]
[1734256554777,8.62e-05,102160.0,102150.0,4.92009474]
[1734256554985,8.62e-05,102160.0,102150.0,5.13862247]
[1734256555186,8.62e-05,102160.0,102150.0,4.92009474]
[1734256555433,8.62e-05,102160.0,102150.0,5.13862247]
[1734256555647,8.62e-05,102160.0,102150.0,4.19602946]
[1734256555854,8.62e-05,102160.0,102150.0,4.19621943]
[1734256556521,8.62e-05,102160.0,102150.0,4.12321943]
[1734256558096,8.62e-05,102160.0,102150.0,4.13281328]
[1734256560256,8.62e-05,102160.0,102150.0,4.13318304]
[1734256560482,8.62e-05,102160.0,102150.0,4.0457196]
[1734256560689,0.0798,102180.0,102170.0,0.02938382]
[1734256560900,0.0798,102180.0,102170.0,0.44027613]
[1734256561108,0.0798,102180.0,102170.0,0.44454423]
[1734256562807,0.0798,102180.0,102170.0,0.37940392]
[1734256563285,0.0798,102180.0,102170.0,0.44454423]
[1734256563500,0.1256,102180.0,102170.0,0.44454423]
[1734256568561,0.1256,102180.0,102170.0,0.5321321]
[1734256569202,0.1256,102180.0,102170.0,0.37940392]
[1734256569429,0.1256,102180.0,102170.0,0.46699179]
[1734256570268,0.1256,102180.0,102170.0,0.5321321]
[1734256570473,0.1256,102180.0,102170.0,0.6635139]
[1734256570658,0.1256,102180.0,102170.0,0.98865003]
[1734256570864,0.1256,102180.0,102170.0,0.92350972]
[1734256571277,0.1256861,102180.0,102170.0,1.20850972]
[1734256571620,0.1256861,102180.0,102170.0,1.38368546]
[1734256573410,0.1256861,102180.0,102170.0,1.60265513]
[1734256574459,0.1256861,102180.0,102170.0,1.40690313]
[1734256575894,0.1256861,102180.0,102170.0,1.40889905]